bitfinex-derivatives/quotes_BTCF0:USTF0_20250130
["timestamp","ask_amount","ask_price","bid_price","bid_amount"]
[1738251658910,0.188722,105970.0,105960.0,0.33835954]
[1738251659103,0.188722,105970.0,105960.0,0.69915954]
[1738251659104,0.34244694,105970.0,105960.0,0.69915954]
[1738251659304,0.34244694,105970.0,105960.0,0.88789954]
[1738251659305,0.188722,105970.0,105960.0,0.88789954]
[1738251659612,0.188722,105970.0,105960.0,0.90264946]
[1738251659807,0.34244694,105970.0,105960.0,0.90264946]
[1738251660116,0.34244694,105970.0,105960.0,0.90264969]
[1738251660314,0.34244694,105970.0,105960.0,0.35310969]
[1738251660502,0.70324694,105970.0,105960.0,0.35310969]
[1738251660711,0.70324694,105970.0,105960.0,0.33835954]
[1738251661005,0.70324694,105970.0,105960.0,0.35311099]
[1738251661212,0.18874,105960.0,105950.0,0.22634039]
[1738251661408,1.05204988,105960.0,105950.0,0.22492466]
[1738251661608,1.13054988,105960.0,105950.0,0.22492466]
[1738251662115,0.61602494,105960.0,105950.0,0.22492466]
[1738251663707,0.61602494,105960.0,105950.0,0.22892466]
[1738251664611,0.58446494,105960.0,105950.0,0.22892466]
[1738251665211,0.58446494,105960.0,105950.0,0.0041419]
[1738251666605,0.58446494,105960.0,105950.0,0.5536999]
[1738251667117,0.58446494,105960.0,105950.0,0.3649419]
[1738251667910,0.58446494,105960.0,105950.0,0.5536999]
[1738251668317,0.50816494,105960.0,105950.0,0.5536999]
[1738251669817,0.51782239,105960.0,105950.0,0.5536999]
[1738251670117,0.51782239,105960.0,105950.0,0.1928999]
[1738251670515,0.51782239,105960.0,105950.0,0.0041419]
[1738251671415,0.51782239,105960.0,105950.0,0.5536999]
[1738251671817,0.188727,105970.0,105960.0,0.18874]
[1738251672117,0.34245194,105970.0,105960.0,0.54954]
[1738251672520,0.2913668,105970.0,105960.0,0.54954]
[1738251672826,0.0001419,105980.0,105960.0,0.5976396]
[1738251673120,0.0001419,105980.0,105970.0,0.7350618]
[1738251673822,0.0001419,105980.0,105970.0,0.632422]
[1738251674216,0.0001419,105980.0,105970.0,0.7350618]
[1738251674613,0.35752673,106010.0,106000.0,0.188669]
[1738251674814,0.16886973,106010.0,106000.0,0.910269]
[1738251675614,0.2912908,106010.0,106000.0,0.910269]
[1738251675926,0.188651,106010.0,106000.0,0.910269]
[1738251676426,0.192651,106010.0,106000.0,0.910269]
[1738251677723,0.004,106010.0,106000.0,0.910269]
[1738251678315,0.008,106010.0,106000.0,0.911269]
[1738251678628,0.196651,106010.0,106000.0,0.911269]
[1738251679129,0.192651,106010.0,106000.0,0.911269]
[1738251679331,0.192651,106010.0,106000.0,0.912269]
[1738251679519,0.188651,106010.0,106000.0,0.911269]
[1738251679714,0.188651,106010.0,106000.0,0.914269]
[1738251681114,0.34246654,106010.0,106000.0,0.3648]
[1738251681421,0.34246654,106010.0,106000.0,0.004]
[1738251681624,0.42846654,106010.0,106000.0,0.004]
[1738251682733,0.24281554,106010.0,105990.0,0.5496249]
[1738251683032,0.188669,106000.0,105990.0,0.5496249]
[1738251684129,0.34248454,106000.0,105990.0,0.3609419]
[1738251684529,0.34248454,106000.0,105990.0,0.0001419]
[1738251686230,0.70328454,106000.0,105990.0,0.0011419]
[1738251686729,0.70328454,106000.0,105990.0,0.0041419]
[1738251687631,0.70328454,106000.0,105990.0,0.0011419]
[1738251688326,0.189669,106000.0,105990.0,0.5496289]
[1738251688521,0.001,106000.0,105990.0,0.5496289]
[1738251688727,0.189669,106000.0,105990.0,0.6329289]
[1738251690127,0.19912416,106000.0,105990.0,0.6329289]
[1738251690733,0.20112416,106000.0,105990.0,0.6349289]
[1738251691626,0.20112416,106000.0,105990.0,0.6329289]
[1738251691829,0.19812416,106000.0,105990.0,0.6339289]
[1738251692024,0.19812416,106000.0,105990.0,0.6369289]
[1738251692427,0.3519397,106000.0,105990.0,0.3649419]
[1738251692629,0.86655524,106000.0,105990.0,0.0041419]
[1738251693128,0.047172,105990.0,105960.0,0.581057]
[1738251693335,0.23421554,105980.0,105960.0,0.581057]
[1738251693533,0.188722,105970.0,105960.0,0.581057]
[1738251693727,0.188722,105970.0,105950.0,0.74997]
[1738251693728,0.18874,105960.0,105950.0,0.74997]
[1738251693929,0.18874,105960.0,105950.0,0.58107]
[1738251693930,0.34255554,105960.0,105950.0,0.58107]
[1738251694129,0.18874,105960.0,105950.0,0.86196267]
[1738251694638,0.18874,105960.0,105950.0,0.83044267]
[1738251695728,0.18874,105960.0,105950.0,0.64169267]
[1738251695934,0.18874,105960.0,105950.0,0.28689267]
[1738251695935,0.34255554,105960.0,105950.0,0.28689267]
[1738251696125,0.85717108,105960.0,105950.0,0.28689267]
[1738251696328,0.85717108,105960.0,105940.0,0.33850144]
[1738251696329,0.188758,105950.0,105940.0,0.33150144]
[1738251696625,0.78727354,105950.0,105940.0,0.32000342]
[1738251697441,0.78727354,105950.0,105940.0,0.0001419]
[1738251698137,0.78827354,105950.0,105940.0,0.0001419]
[1738251698439,0.81979354,105950.0,105940.0,0.0001419]
[1738251698637,0.63103554,105950.0,105920.0,0.0014161]
[1738251698838,0.34260854,105930.0,105920.0,0.0014161]
[1738251699530,0.42160854,105930.0,105920.0,0.0014161]
[1738251700133,0.81392854,105930.0,105920.0,0.004]
[1738251700335,0.89332854,105930.0,105920.0,0.004]
[1738251700528,1.04714408,105930.0,105920.0,0.004]
[1738251700840,1.40794408,105930.0,105920.0,0.004]
[1738251701043,0.188811,105920.0,105910.0,0.32000342]
[1738251701337,0.94114208,105920.0,105910.0,0.32000342]
[1738251701542,0.94114208,105920.0,105910.0,0.0001419]
[1738251702843,0.75233108,105920.0,105870.0,0.632595]
[1738251703133,0.34269854,105880.0,105870.0,0.632595]
[1738251703440,0.188883,105880.0,105870.0,0.993395]
[1738251704233,0.34269854,105880.0,105870.0,0.993395]
[1738251704825,0.188883,105880.0,105870.0,0.993395]
[1738251705837,0.34269854,105880.0,105870.0,0.993395]
[1738251707137,0.188883,105880.0,105870.0,0.997395]
[1738251707444,0.34269854,105880.0,105870.0,0.8085]
[1738251707742,0.34369854,105880.0,105870.0,0.8165]
[1738251707933,0.34369854,105880.0,105870.0,0.8155]
[1738251708540,0.34269854,105880.0,105870.0,0.8075]
[1738251708741,0.34369854,105880.0,105870.0,0.8145]
[1738251709138,0.49751408,105880.0,105870.0,0.01]
[1738251709539,0.37521854,105880.0,105870.0,0.01]
[1738251710738,0.38490869,105880.0,105870.0,0.01]
[1738251711236,0.38490869,105880.0,105870.0,0.004]
[1738251711237,0.19502569,105880.0,105870.0,0.004]
[1738251711547,0.38390769,105880.0,105870.0,0.006]
[1738251712242,0.35238769,105880.0,105870.0,0.5557]
[1738251712545,0.35338769,105880.0,105870.0,0.5517]
[1738251713242,0.01069015,105880.0,105870.0,0.58322]
[1738251713453,0.001,105880.0,105870.0,0.58322]
[1738251714044,0.189882,105880.0,105870.0,0.58322]
[1738251714835,0.34369754,105880.0,105870.0,0.58322]
[1738251715056,0.34369754,105880.0,105870.0,0.58122]
[1738251715344,0.34269754,105880.0,105870.0,0.58622]
[1738251715747,0.34269754,105880.0,105870.0,0.5547]
[1738251715954,0.30763108,105880.0,105870.0,0.002]
[1738251716138,0.79925208,105880.0,105860.0,0.0001419]
[1738251716338,0.42761554,105870.0,105860.0,0.3609419]
[1738251716541,0.34271554,105870.0,105860.0,0.0001419]
[1738251716744,0.34271554,105870.0,105860.0,0.3609419]
[1738251717853,0.34271554,105870.0,105860.0,0.5498599]
[1738251718157,0.23741554,105880.0,105860.0,0.5498599]
[1738251718347,0.42630854,105880.0,105870.0,0.3608]
[1738251719450,0.42630854,105880.0,105870.0,0.3618]
[1738251720047,0.42630854,105880.0,105870.0,0.3608]
[1738251720253,0.58512408,105880.0,105870.0,0.3618]
[1738251720445,0.58612408,105880.0,105870.0,0.3618]
[1738251720645,0.94692408,105880.0,105870.0,0.001]
[1738251720946,0.79310854,105880.0,105870.0,0.001]
[1738251721447,0.43230854,105880.0,105870.0,0.5507]
[1738251722050,0.58612408,105880.0,105870.0,0.001]
[1738251722239,0.94692408,105880.0,105870.0,0.001]
[1738251722446,0.1889,105870.0,105860.0,0.0001419]
[1738251722651,0.78511554,105870.0,105860.0,0.0001419]
[1738251722856,0.188936,105850.0,105840.0,0.36221687]
[1738251723046,0.188954,105840.0,105830.0,0.522]
[1738251723246,0.49658508,105840.0,105830.0,0.3608]
[1738251723453,0.34276954,105840.0,105830.0,0.549772]
[1738251725952,0.34276954,105840.0,105830.0,0.550772]
[1738251726559,0.188954,105840.0,105830.0,0.550772]
[1738251726757,0.188954,105840.0,105830.0,0.551772]
[1738251727349,0.34276954,105840.0,105830.0,0.551772]
[1738251727759,0.35221393,105840.0,105830.0,0.551772]
[1738251727960,0.35221393,105840.0,105830.0,0.3628]
[1738251728760,0.50602947,105840.0,105830.0,0.002]
[1738251728962,0.35221393,105840.0,105830.0,0.002]
[1738251729347,0.86682947,105840.0,105830.0,0.002]
[1738251729556,1.03502947,105840.0,105830.0,0.002]
[1738251729760,1.06654947,105840.0,105830.0,0.002]
[1738251729963,0.188972,105830.0,105820.0,0.0001419]
[1738251730261,0.78318754,105830.0,105820.0,0.0001419]
[1738251730857,0.34280554,105820.0,105810.0,0.00141751]
[1738251731452,0.34280554,105820.0,105810.0,0.36221751]
[1738251732257,0.34280554,105820.0,105810.0,0.00141751]
[1738251732764,0.189007,105810.0,105800.0,0.68488545]
[1738251732958,0.34282254,105810.0,105800.0,0.87391045]
[1738251733566,0.34282254,105810.0,105800.0,0.68488545]
[1738251734865,0.189007,105810.0,105800.0,0.64991958]
[1738251735053,0.15381554,105820.0,105800.0,0.46089458]
[1738251735266,0.0001419,105830.0,105820.0,0.18899]
[1738251735568,0.11188027,105840.0,105830.0,0.188972]
[1738251735768,0.13981607,105850.0,105840.0,0.188954]
[1738251735961,0.13981607,105850.0,105840.0,0.70356954]
[1738251736366,0.16886973,105860.0,105850.0,0.188936]
[1738251736576,0.16901163,105860.0,105850.0,0.741556]
[1738251736767,0.16901163,105860.0,105850.0,0.825056]
[1738251737671,0.35792963,105860.0,105850.0,0.825056]
[1738251737868,0.34287544,105860.0,105850.0,0.5242]
[1738251738068,0.34287544,105860.0,105850.0,0.55568]
[1738251738566,0.34287544,105860.0,105850.0,0.5242]
[1738251738761,0.34287544,105860.0,105850.0,0.55568]
[1738251739269,0.34287544,105860.0,105840.0,0.4421]
[1738251739270,0.51475744,105860.0,105840.0,0.4421]
[1738251739469,0.34275154,105850.0,105840.0,0.47358]
[1738251739770,0.34275154,105850.0,105840.0,0.39228]
[1738251740166,0.34275154,105850.0,105840.0,0.3608]
[1738251740872,0.188954,105840.0,105830.0,0.3609419]
[1738251741069,0.34276954,105840.0,105830.0,0.3609419]
[1738251742068,0.188954,105840.0,105830.0,0.5499139]
[1738251742276,0.002,105850.0,105830.0,0.51475744]
[1738251742576,0.002,105850.0,105840.0,0.73504954]
[1738251742577,0.18894,105850.0,105840.0,0.73504954]
[1738251742767,0.18894,105850.0,105840.0,0.581234]
[1738251742963,0.1890639,105860.0,105850.0,0.188936]
[1738251743270,0.1890639,105860.0,105850.0,0.5237]
[1738251744476,0.34287944,105860.0,105850.0,0.5237]
[1738251744880,0.1890639,105860.0,105850.0,0.5237]
[1738251745270,0.1890639,105860.0,105850.0,0.712636]
[1738251745583,0.00964343,105860.0,105850.0,0.787336]
[1738251745875,0.00964343,105860.0,105850.0,0.788336]
[1738251746775,0.0001419,105860.0,105850.0,0.94215154]
[1738251747978,0.0001419,105860.0,105850.0,0.94315154]
[1738251748184,0.0001419,105860.0,105850.0,0.789336]
[1738251748574,0.34287544,105860.0,105850.0,0.820816]
[1738251748781,0.0001419,105860.0,105850.0,0.97463154]
[1738251749190,0.19963172,105870.0,105850.0,0.78569554]
[1738251749191,0.00141752,105870.0,105850.0,0.78569554]
[1738251749379,0.00141752,105870.0,105860.0,0.70353354]
[1738251749580,0.00141752,105870.0,105860.0,0.549718]
[1738251749880,0.1889,105870.0,105860.0,0.549718]
[1738251751287,0.1909,105870.0,105860.0,0.549718]
[1738251752082,0.002,105870.0,105860.0,0.549718]
[1738251753087,0.1909,105870.0,105860.0,0.549718]
[1738251753288,0.1909,105870.0,105860.0,0.581198]
[1738251754079,0.1909,105870.0,105860.0,0.549718]
[1738251754280,0.1909,105870.0,105860.0,0.581198]
[1738251754791,0.002,105870.0,105860.0,0.549718]
[1738251754985,0.002,105870.0,105860.0,0.581198]
[1738251756087,0.002,105870.0,105860.0,0.549718]
[1738251756282,0.002,105870.0,105860.0,0.581198]
[1738251756593,0.002,105870.0,105860.0,0.73501354]
[1738251757888,0.68348527,105920.0,105860.0,1.06979554]
[1738251758186,0.16886973,105920.0,105910.0,0.549629]
[1738251758390,0.17818617,105920.0,105910.0,0.73488454]
[1738251758592,0.16886973,105920.0,105910.0,0.81128454]
[1738251758892,0.16886973,105920.0,105910.0,0.657469]
[1738251759283,0.19701469,105930.0,105920.0,0.188811]
[1738251759284,0.16901163,105930.0,105920.0,0.188811]
[1738251759491,0.16901163,105930.0,105920.0,0.549611]
[1738251759897,0.17846623,105930.0,105920.0,0.549611]
[1738251760890,0.52107477,105930.0,105920.0,0.3608]
[1738251762596,0.188829,105910.0,105900.0,0.0001419]
[1738251762899,0.188847,105900.0,105890.0,0.3608]
[1738251763089,0.188847,105900.0,105880.0,0.6176474]
[1738251763090,0.15381554,105900.0,105880.0,0.6176474]
[1738251763288,0.188865,105890.0,105880.0,0.6176474]
[1738251763791,0.188854,105900.0,105880.0,0.8065304]
[1738251763996,0.1889959,105900.0,105890.0,0.3608]
[1738251766399,0.1889959,105900.0,105890.0,0.39224]
[1738251766604,0.19868135,105900.0,105890.0,0.39224]
[1738251766893,0.19868135,105900.0,105890.0,0.39324]
[1738251767199,0.35249689,105900.0,105890.0,0.39324]
[1738251768087,0.35249689,105900.0,105890.0,0.3638]
[1738251769696,0.35249689,105900.0,105890.0,0.3628]
[1738251770003,0.35249689,105900.0,105890.0,0.001]
[1738251770198,0.35449689,105900.0,105890.0,0.001]
[1738251770399,0.35449689,105900.0,105890.0,0.3618]
[1738251770797,0.35449689,105900.0,105890.0,0.3608]
[1738251771005,0.19868135,105900.0,105890.0,0.3608]
[1738251771194,0.01182735,105900.0,105890.0,0.549665]
[1738251771389,0.35448989,105900.0,105890.0,0.656305]
[1738251771588,0.35448989,105900.0,105890.0,0.581105]
[1738251772192,0.20067435,105900.0,105890.0,0.581105]
[1738251773504,0.0001419,105900.0,105890.0,0.581105]
[1738251773694,0.0021419,105900.0,105890.0,0.73492054]
[1738251775889,0.0021419,105900.0,105890.0,0.581105]
[1738251776704,0.0021419,105900.0,105890.0,0.73492054]
[1738251777495,0.0021419,105900.0,105890.0,0.581105]
[1738251778802,0.1909889,105900.0,105890.0,0.581105]
[1738251779197,0.0021419,105900.0,105890.0,0.90404976]
[1738251780210,0.0021419,105900.0,105890.0,0.75023422]
[1738251780809,0.34480444,105900.0,105890.0,0.71879422]
[1738251780999,0.34480444,105900.0,105890.0,0.75023422]
[1738251781303,0.34480444,105900.0,105890.0,0.52992922]
[1738251781606,0.70560444,105900.0,105890.0,0.17012922]
[1738251781797,0.70560444,105900.0,105880.0,0.86638445]
[1738251781798,0.188865,105890.0,105880.0,0.48984043]
[1738251782004,0.70348054,105890.0,105880.0,0.48984043]
[1738251782897,0.96843108,105890.0,105870.0,0.0001419]
[1738251783101,0.49651408,105880.0,105870.0,0.0001419]
[1738251783314,0.34269854,105880.0,105870.0,0.3609419]
[1738251783814,0.34269854,105880.0,105870.0,0.5498419]
[1738251784009,0.34268754,105890.0,105880.0,0.188883]
[1738251784209,0.34268754,105890.0,105880.0,0.3628]
[1738251785212,0.34268754,105890.0,105880.0,0.1919]
[1738251786198,0.34268754,105890.0,105880.0,0.5507]
[1738251786404,0.15381554,105890.0,105870.0,0.0001419]
[1738251786608,0.34271654,105880.0,105870.0,0.0001419]
[1738251787097,0.70351654,105880.0,105870.0,0.0001419]
[1738251787409,0.34271654,105880.0,105870.0,0.0001419]
[1738251787803,0.34471654,105880.0,105870.0,0.3609419]
[1738251788004,0.190901,105880.0,105870.0,0.3609419]
[1738251788309,0.002,105880.0,105870.0,0.73511644]
[1738251788906,0.002,105880.0,105870.0,0.5813009]
[1738251789903,0.002,105880.0,105870.0,0.73511644]
[1738251790210,0.002,105880.0,105870.0,0.5813009]
[1738251790611,0.002,105880.0,105870.0,0.73511644]
[1738251792411,0.34471654,105880.0,105870.0,0.3609419]
[1738251792605,0.34471654,105880.0,105870.0,0.0315819]
[1738251792806,0.34471654,105880.0,105870.0,0.0001419]
[1738251793416,0.70551654,105880.0,105870.0,0.0001419]
[1738251793607,0.85933208,105880.0,105870.0,0.0001419]
[1738251793806,0.89077208,105880.0,105870.0,0.0001419]
[1738251794620,0.73695654,105880.0,105870.0,0.0001419]
[1738251794915,0.70551654,105880.0,105870.0,0.0001419]
[1738251795123,0.85933208,105880.0,105870.0,0.0001419]
[1738251795318,0.70551654,105880.0,105870.0,0.0001419]
[1738251795821,0.34471654,105880.0,105870.0,0.3609419]
[1738251796018,0.48501046,105880.0,105870.0,0.5498609]
[1738251796223,0.33119492,105880.0,105870.0,0.5498609]
[1738251797017,0.14229392,105880.0,105870.0,0.5498609]
[1738251797618,0.14229392,105880.0,105870.0,0.5813009]
[1738251798921,0.002,105880.0,105870.0,0.5813009]
[1738251799221,0.34471654,105880.0,105870.0,0.5498609]
[1738251799514,0.34471654,105880.0,105870.0,0.0001419]
[1738251799714,0.34471654,105880.0,105870.0,0.5498609]
[1738251800222,0.190901,105880.0,105870.0,0.5498609]
[1738251800411,0.2002327,105880.0,105870.0,0.5498609]
[1738251803518,0.35404824,105880.0,105870.0,0.0001419]
[1738251804327,0.2002327,105880.0,105870.0,0.5498609]
[1738251805033,0.0113317,105880.0,105870.0,0.5498609]
[1738251806224,0.002,105880.0,105870.0,0.70367644]
[1738251806521,0.002,105880.0,105870.0,0.5812609]
[1738251806827,0.34471654,105880.0,105870.0,0.5812609]
[1738251807033,0.34471654,105880.0,105870.0,0.3923419]
[1738251807330,0.190901,105880.0,105870.0,0.5812609]
[1738251808118,0.002,105880.0,105870.0,0.5812609]
[1738251810533,0.002,105880.0,105870.0,0.73507644]
[1738251810728,0.12248136,105900.0,105890.0,0.188883]
[1738251811039,0.12248136,105900.0,105890.0,0.941883]
[1738251811740,0.4651629,105900.0,105890.0,0.941883]
[1738251811930,0.49267258,105900.0,105890.0,0.941883]
[1738251812534,0.49567258,105900.0,105890.0,0.941883]
[1738251813239,0.34185704,105900.0,105890.0,0.941883]
[1738251813739,0.34885704,105900.0,105890.0,0.941883]
[1738251813935,0.15999104,105900.0,105890.0,0.987883]
[1738251814142,0.15999104,105900.0,105890.0,1.019283]
[1738251814338,0.15999104,105900.0,105890.0,1.095383]
[1738251815739,0.0101419,105900.0,105890.0,1.095383]
[1738251817143,0.16395744,105900.0,105890.0,0.987883]
[1738251817349,0.35282244,105900.0,105890.0,0.4696]
[1738251817644,0.43462244,105900.0,105890.0,0.1088]
[1738251817845,0.43462244,105900.0,105890.0,0.4696]
[1738251818545,0.43462244,105900.0,105890.0,0.1088]
[1738251818736,0.188883,105890.0,105880.0,0.3608]
[1738251818943,0.34269854,105890.0,105880.0,0.3608]
[1738251819249,0.188901,105880.0,105870.0,0.4686419]
[1738251819550,0.34271654,105880.0,105870.0,0.4686419]
[1738251819938,0.34271654,105880.0,105870.0,0.6575609]
[1738251821035,0.188901,105880.0,105870.0,0.6575609]
[1738251821340,0.273692,105890.0,105880.0,0.188901]
[1738251821535,0.273692,105890.0,105880.0,0.549701]
[1738251821743,0.273692,105890.0,105880.0,0.3608]
[1738251822248,0.42750754,105890.0,105880.0,0.3608]
[1738251822440,0.54050062,105890.0,105880.0,0.3608]
[1738251822636,0.46070062,105890.0,105880.0,0.3608]
[1738251823047,0.30688508,105890.0,105880.0,0.549701]
[1738251823250,0.11799308,105890.0,105880.0,0.549701]
[1738251823645,0.11699308,105890.0,105880.0,0.549701]
[1738251824244,0.11299308,105890.0,105880.0,0.549701]
[1738251824445,0.11699308,105890.0,105880.0,0.549701]
[1738251825044,0.11799308,105890.0,105880.0,0.549701]
[1738251825852,0.11799308,105890.0,105880.0,0.65247676]
[1738251826343,0.005,105890.0,105880.0,0.65247676]
[1738251828051,0.005,105890.0,105880.0,0.549701]
[1738251829150,0.10777576,105890.0,105880.0,0.581101]
[1738251829455,0.29665876,105890.0,105880.0,0.581101]
[1738251829853,0.10777576,105890.0,105880.0,0.581101]
[1738251831658,0.29665876,105890.0,105880.0,0.581101]
[1738251832854,0.29665876,105890.0,105880.0,0.549701]
[1738251833755,0.29665876,105890.0,105880.0,0.3608]
[1738251834448,0.29665876,105890.0,105880.0,0.549701]
[1738251836660,0.40965184,105890.0,105880.0,0.549701]
[1738251837650,0.41926769,105890.0,105880.0,0.3608]
[1738251839561,0.41926769,105890.0,105880.0,0.549701]
[1738251839748,0.12760893,105890.0,105880.0,0.65247676]
[1738251839954,0.11799308,105890.0,105880.0,0.65247676]
[1738251840177,0.40965184,105890.0,105880.0,0.549701]
[1738251840462,0.11799308,105890.0,105880.0,0.549701]
[1738251840860,0.11799308,105890.0,105880.0,0.65247676]
[1738251841357,0.258287,105890.0,105880.0,0.65247676]
[1738251843465,0.129759,105890.0,105880.0,1.00247676]
[1738251843667,0.20624579,105930.0,105920.0,0.18883]
[1738251843856,0.20624579,105930.0,105920.0,1.04460576]
[1738251844053,0.20624579,105930.0,105920.0,0.94183]
[1738251844656,0.19701469,105930.0,105920.0,1.12480576]
[1738251845357,0.19701469,105930.0,105920.0,1.12580576]
[1738251846066,0.5067326,105940.0,105930.0,0.188812]
[1738251846266,0.5067326,105940.0,105930.0,0.549612]
[1738251846465,0.79830236,105940.0,105930.0,0.549612]
[1738251846667,0.79830236,105940.0,105930.0,0.3608]
[1738251847665,0.80782877,105940.0,105930.0,0.3608]
[1738251847870,0.51625901,105940.0,105930.0,0.549612]
[1738251848063,0.4237326,105940.0,105930.0,0.65238776]
[1738251848559,0.42231623,105940.0,105930.0,0.65238776]
[1738251849357,0.42231623,105940.0,105930.0,0.549612]
[1738251850260,0.0001419,105940.0,105930.0,0.549612]
[1738251851072,0.0001419,105940.0,105930.0,0.65238776]
[1738251851961,0.0001419,105940.0,105930.0,0.549612]
[1738251852452,0.0001419,105940.0,105930.0,0.580972]
[1738251853063,0.29171166,105940.0,105930.0,0.549612]
[1738251853261,0.1889359,105940.0,105930.0,0.580972]
[1738251853667,0.0001419,105940.0,105930.0,0.580972]
[1738251854271,0.0001419,105940.0,105930.0,0.68374776]
[1738251858462,0.0001419,105940.0,105930.0,0.549612]
[1738251858658,0.0001419,105940.0,105930.0,0.580972]
[1738251858965,0.0001419,105940.0,105930.0,0.549612]
[1738251859160,0.29171166,105940.0,105930.0,0.39216]
[1738251860067,0.188812,105930.0,105920.0,0.3608]
[1738251860273,0.52008776,105930.0,105920.0,0.3608]
[1738251860464,0.52008776,105930.0,105920.0,0.39216]
[1738251860659,0.52008776,105930.0,105920.0,0.3608]
[1738251862075,0.18883,105920.0,105910.0,0.6175806]
[1738251862277,0.29160576,105920.0,105910.0,0.6175806]
[1738251862476,0.29160576,105920.0,105910.0,0.5862206]
[1738251862862,0.29160576,105920.0,105910.0,0.3609419]
[1738251863666,0.65240576,105920.0,105910.0,0.0001419]
[1738251863880,0.65240576,105920.0,105890.0,0.3608]
[1738251863881,0.188866,105900.0,105890.0,0.3608]
[1738251864066,0.29164176,105900.0,105890.0,0.3608]
[1738251864267,0.52214176,105900.0,105890.0,0.3608]
[1738251865465,0.52214176,105900.0,105890.0,0.3628]
[1738251866881,0.62491752,105900.0,105890.0,0.3628]
[1738251867673,0.52214176,105900.0,105890.0,0.3628]
[1738251867979,0.52314176,105900.0,105890.0,0.3608]
[1738251868167,0.188883,105890.0,105880.0,0.3609419]
[1738251868371,0.29165876,105890.0,105880.0,0.3609419]
[1738251869680,0.29165876,105890.0,105880.0,0.3619419]
[1738251869880,0.29165876,105890.0,105880.0,0.0011419]
[1738251870474,0.65245876,105890.0,105880.0,0.0011419]
[1738251871184,0.65245876,105890.0,105880.0,0.0031419]
[1738251871575,0.29165876,105890.0,105880.0,0.0031419]
[1738251871771,0.29165876,105890.0,105880.0,0.3639419]
[1738251871977,0.29165876,105890.0,105880.0,0.3629419]
[1738251872378,0.29265876,105890.0,105880.0,0.3609419]
[1738251873287,0.65345876,105890.0,105880.0,0.0001419]
[1738251874488,0.68481876,105890.0,105880.0,0.0001419]
[1738251878991,0.29265876,105890.0,105880.0,0.5498429]
[1738251879185,0.001,105890.0,105880.0,0.5498429]
[1738251879494,0.189883,105890.0,105880.0,0.7014429]
[1738251879681,0.29265876,105890.0,105880.0,0.7760429]
[1738251879889,0.29265876,105890.0,105880.0,0.5125419]
[1738251881501,0.29265876,105890.0,105880.0,0.7014429]
[1738251881699,0.001,105890.0,105880.0,0.80421866]
[1738251883291,0.0001419,105910.0,105900.0,0.188865]
[1738251883495,0.0001419,105910.0,105900.0,1.01324076]
[1738251884002,0.0001419,105910.0,105900.0,0.910465]
[1738251884600,0.0021419,105910.0,105900.0,0.910465]
[1738251884812,0.29376466,105910.0,105900.0,0.75292]
[1738251885305,0.1909889,105910.0,105900.0,0.75292]
[1738251885506,0.1969889,105910.0,105900.0,0.75392]
[1738251885698,0.1969889,105910.0,105900.0,0.942785]
[1738251885897,0.0081419,105910.0,105900.0,0.942785]
[1738251887711,0.1969889,105910.0,105900.0,0.75392]
[1738251888093,0.29976466,105910.0,105900.0,0.942785]
[1738251889600,0.29976466,105910.0,105900.0,0.7226]
[1738251889801,0.29976466,105910.0,105900.0,0.001]
[1738251890010,0.44846466,105910.0,105900.0,0.001]
[1738251890211,0.44846466,105910.0,105900.0,0.3618]
[1738251891204,0.44846466,105910.0,105900.0,0.001]
[1738251891398,0.80926466,105910.0,105900.0,0.001]
[1738251891593,0.62644042,105910.0,105900.0,0.001]
[1738251891801,0.98724042,105910.0,105900.0,0.001]
[1738251892597,0.88446466,105910.0,105900.0,0.001]
[1738251893199,0.98724042,105910.0,105900.0,0.001]
[1738251894407,0.88446466,105910.0,105900.0,0.001]
[1738251894914,0.98724042,105910.0,105900.0,0.001]
[1738251895201,0.88446466,105910.0,105900.0,0.001]
[1738251895607,1.02469251,105910.0,105900.0,0.001]
[1738251896009,1.12746827,105910.0,105900.0,0.001]
[1738251896504,0.188883,105890.0,105880.0,0.0001419]
[1738251896706,0.65245876,105890.0,105880.0,0.0001419]
[1738251897108,0.29165876,105890.0,105880.0,0.0001419]
[1738251899511,0.29265876,105890.0,105880.0,0.0001419]
[1738251901699,0.29265876,105890.0,105850.0,0.66059555]
[1738251901700,0.56735152,105890.0,105850.0,0.66059555]
[1738251901906,0.29171176,105860.0,105850.0,0.2983787]
[1738251902209,0.39448752,105860.0,105850.0,0.2252787]
[1738251902417,0.65251176,105860.0,105850.0,0.2252787]
[1738251903019,0.29171176,105860.0,105850.0,0.2252787]
[1738251903911,0.65251176,105860.0,105850.0,0.2282787]
[1738251904208,0.188954,105850.0,105840.0,3.5e-07]
[1738251904410,0.97750552,105850.0,105840.0,3.5e-07]
[1738251904611,0.188972,105840.0,105830.0,0.19426631]
[1738251904816,0.39452352,105840.0,105830.0,0.55506631]
[1738251905119,0.29174776,105840.0,105830.0,0.55506631]
[1738251905517,0.29174776,105840.0,105830.0,0.74405631]
[1738251906217,0.0001419,105850.0,105830.0,1.95506631]
[1738251906416,0.1122488,105860.0,105840.0,0.64749576]
[1738251906715,0.19840904,105860.0,105850.0,0.3608]
[1738251906919,0.27200904,105860.0,105850.0,0.3608]
[1738251907211,0.27200904,105860.0,105850.0,0.549754]
[1738251907212,0.3011848,105860.0,105850.0,0.549754]
[1738251907410,0.44141265,105860.0,105840.0,0.733687]
[1738251907608,0.44141265,105860.0,105840.0,0.7338289]
[1738251908121,0.44141265,105860.0,105850.0,0.3608]
[1738251908318,0.44541265,105860.0,105850.0,0.3608]
[1738251908515,0.44841265,105860.0,105850.0,0.3608]
[1738251908918,0.44841265,105860.0,105840.0,0.7338289]
[1738251909113,0.44841265,105860.0,105850.0,0.549754]
[1738251909416,0.15670089,105860.0,105850.0,0.549754]
[1738251909618,0.14722785,105860.0,105850.0,0.72822976]
[1738251910009,0.25000361,105860.0,105850.0,0.625454]
[1738251910414,0.25000361,105860.0,105850.0,0.4365]
[1738251910415,0.43893961,105860.0,105850.0,0.4365]
[1738251910821,0.29871176,105860.0,105850.0,0.4365]
[1738251911021,0.29771176,105860.0,105850.0,0.4365]
[1738251911407,0.29771176,105860.0,105850.0,0.3608]
[1738251911613,0.36461176,105860.0,105850.0,0.3608]
[1738251911920,0.37161176,105860.0,105850.0,0.3608]
[1738251912423,0.36961176,105860.0,105850.0,0.3608]
[1738251912617,0.188954,105850.0,105840.0,0.0001419]
[1738251912811,0.39450552,105850.0,105840.0,0.0001419]